"Anno";"Comp./Res.";"Tipo";"Data Mov.";"Progr.";"Causale";"Capitolo";"Articolo";"DebitoreFornitore";"Importo";"Iva sp";"Inps";"Irpef";"Netto";"Modalita Pagamento";"ValidoAnnullato";"Note";"Anno imp. /acc.";"Imp. /Acc."
"2022";"COMPETENZA";"Mandato";"30/12/2022";"599";"Pagamento fattura n.712201095581 del 29/11/2022";"31 - Energia elettrica, acqua e gas";"0 - Energia elettrica, acqua e gas";"HERA COMM. SRL  ";"28,80";"0,00";"-";"0,00";"28,80";"COPERTURA SOSPESI";"Valido";"-";"2022";"595"
"2022";"COMPETENZA";"Mandato";"30/12/2022";"598";"Pagamento fattura n.712201095580 del 29/11/2022";"31 - Energia elettrica, acqua e gas";"0 - Energia elettrica, acqua e gas";"HERA COMM. SRL  ";"25,93";"0,00";"-";"0,00";"25,93";"COPERTURA SOSPESI";"Valido";"-";"2022";"594"
"2022";"COMPETENZA";"Mandato";"30/12/2022";"597";"Pagamento fatture   - Rif. Reversale n. 865";"31 - Energia elettrica, acqua e gas";"0 - Energia elettrica, acqua e gas";"HERA COMM. SRL  ";"5,47";"5,47";"-";"-";"0,00";"BONIFICO BANCARIO";"Valido";"-";"2022";"593"
"2022";"COMPETENZA";"Mandato";"15/12/2022";"596";"IRAP DICEMBRE";"13 - Contributi previdenziali e assistenziali";"0 - Contributi previdenziali e assistenziali";"AGENZIA DELLE ENTRATE  ";"2.577,37";"-";"0,00";"0,00";"2.577,37";"MODELLO F 24";"Valido";"-";"2022";"592"
"2022";"COMPETENZA";"Mandato";"15/12/2022";"595";"INPDAP DICEMBRE";"13 - Contributi previdenziali e assistenziali";"0 - Contributi previdenziali e assistenziali";"AGENZIA DELLE ENTRATE  ";"30,33";"-";"0,00";"0,00";"30,33";"MODELLO F 24";"Valido";"-";"2022";"591"
"2022";"COMPETENZA";"Mandato";"15/12/2022";"594";"INPS ENTE DICEMBRE";"13 - Contributi previdenziali e assistenziali";"0 - Contributi previdenziali e assistenziali";"AGENZIA DELLE ENTRATE  ";"7.219,67";"-";"0,00";"0,00";"7.219,67";"MODELLO F 24";"Valido";"-";"2022";"590"
"2022";"COMPETENZA";"Mandato";"15/12/2022";"593";"INPS STIPENDI E TREDICESIME DICEMBRE - VINCOLATO A REVERSALI 835, 837, 839, 846, 848, 850";"51 - Ritenute previdenziali e assistenziali lavoro dipendente";"0 - Ritenute previdenziali e assistenziali lavoro dipendente";"AGENZIA DELLE ENTRATE  ";"2.850,24";"-";"0,00";"0,00";"2.850,24";"MODELLO F 24";"Valido";"-";"2022";"589"
"2022";"COMPETENZA";"Mandato";"15/12/2022";"592";"IRPEF STIPENDI E TREDICESIME DICEMBRE - VINCOLATO A REVERSALI 836, 838, 840, 847, 849, 851";"47 - Ritenute erariali per lavoro dipendente";"0 - Ritenute erariali per lavoro dipendente";"AGENZIA DELLE ENTRATE  ";"9.231,33";"-";"0,00";"0,00";"9.231,33";"MODELLO F 24";"Valido";"-";"2022";"588"
"2022";"COMPETENZA";"Mandato";"14/12/2022";"591";"DICEMBRE";"10 - Indennit� mensa";"0 - Indennit� mensa";"SANTIN COSTANZA";"47,61";"-";"0,00";"0,00";"47,61";"BONIFICO BANCARIO";"Valido";"VALUTA FISSA AL BENEFICIARIO 27/12/2022 SENZA SPESE";"2022";"587"
"2022";"COMPETENZA";"Mandato";"14/12/2022";"590";"DICEMBRE";"10 - Indennit� mensa";"0 - Indennit� mensa";"OZBOLT STEFANO";"47,61";"-";"0,00";"0,00";"47,61";"BONIFICO BANCARIO";"Valido";"VALUTA FISSA AL BENEFICIARIO 27/12/2022 SENZA SPESE";"2022";"586"
"2022";"COMPETENZA";"Mandato";"14/12/2022";"589";"DICEMBRE";"10 - Indennit� mensa";"0 - Indennit� mensa";"DEMARCHI DENISE";"47,61";"-";"0,00";"0,00";"47,61";"BONIFICO BANCARIO";"Valido";"VALUTA FISSA AL BENEFICIARIO 27/12/2022 SENZA SPESE";"2022";"585"
"2022";"COMPETENZA";"Mandato";"14/12/2022";"588";"SALDO RETRIBUZIONE RISULTATO";"8 - Retribuzione risultato dirigente";"0 - Retribuzione risultato dirigente";"SANTIN COSTANZA";"10.000,00";"-";"0,00";"5.493,10";"4.506,90";"BONIFICO BANCARIO";"Valido";"VALUTA FISSA AL BENEFICIARIO 27/12/2022 SENZA SPESE";"2022";"584"
"2022";"COMPETENZA";"Mandato";"14/12/2022";"587";"INDENNITA', STRAORDINARI E FONDO";"9 - Indennit�, trattamento accessorio e lavoro straordinario";"0 - Indennit�, trattamento accessorio e lavoro straordinario";"OZBOLT STEFANO";"1.885,92";"-";"0,00";"0,00";"1.885,92";"BONIFICO BANCARIO";"Valido";"VALUTA FISSA AL BENEFICIARIO 27/12/2022 SENZA SPESE";"2022";"583"
"2022";"COMPETENZA";"Mandato";"14/12/2022";"586";"INDENNITA', STRAORDINARI E FONDO";"9 - Indennit�, trattamento accessorio e lavoro straordinario";"0 - Indennit�, trattamento accessorio e lavoro straordinario";"DEMARCHI DENISE";"1.595,53";"-";"0,00";"0,00";"1.595,53";"BONIFICO BANCARIO";"Valido";"VALUTA FISSA AL BENEFICIARIO 27/12/2022 SENZA SPESE";"2022";"582"
"2022";"COMPETENZA";"Mandato";"14/12/2022";"585";"STIPENDIO DICEMBRE";"6 - Trattamento economico fondamentale";"0 - Trattamento economico fondamentale";"SANTIN COSTANZA";"4.448,60";"-";"1.475,11";"0,00";"2.973,49";"BONIFICO BANCARIO";"Valido";"VALUTA FISSA AL BENEFICIARIO 27/12/2022 SENZA SPESE";"2022";"581"
"2022";"COMPETENZA";"Mandato";"14/12/2022";"584";"STIPENDIO DICEMBRE";"6 - Trattamento economico fondamentale";"0 - Trattamento economico fondamentale";"OZBOLT STEFANO";"2.153,48";"-";"317,26";"1.100,75";"735,47";"BONIFICO BANCARIO";"Valido";"VALUTA FISSA AL BENEFICIARIO 27/12/2022 SENZA SPESE";"2022";"580"
"2022";"COMPETENZA";"Mandato";"14/12/2022";"583";"STIPENDIO DICEMBRE";"6 - Trattamento economico fondamentale";"0 - Trattamento economico fondamentale";"DEMARCHI DENISE";"1.819,49";"-";"278,14";"631,49";"909,86";"BONIFICO BANCARIO";"Valido";"VALUTA FISSA AL BENEFICIARIO 27/12/2022 SENZA SPESE";"2022";"579"
"2022";"COMPETENZA";"Mandato";"14/12/2022";"582";"IVA SPLIT PAYMENT SU FATT. 000334 - MOSETTI TECNICHE GRAFICHE SRL - VINCOLATO A REVERSALE 845";"53 - Ritenute per conto terzi";"0 - Ritenute per conto terzi";"AGENZIA DELLE ENTRATE  ";"635,47";"-";"0,00";"0,00";"635,47";"MODELLO F 24";"Valido";"-";"2022";"578"
"2022";"COMPETENZA";"Mandato";"14/12/2022";"581";"Pagamento fattura n.000334 del 09/12/2022  - Rif. Reversale n. 845";"15 - Spese pubblicazione e spedizione Bollettino, addetto stampa";"0 - Spese pubblicazione e spedizione Bollettino, addetto stampa";"MOSETTI TECNICHE GRAFICHE SRL ";"3.523,97";"635,47";"-";"0,00";"2.888,50";"BONIFICO BANCARIO";"Valido";"-";"2022";"577"
"2022";"COMPETENZA";"Mandato";"13/12/2022";"580";"IVA SPLIT PAYMENT SU FATT. 246 - IDRAULICA SERGIO SI SERGIO STRANO - VINCOLATO A REVERSALE 844";"53 - Ritenute per conto terzi";"0 - Ritenute per conto terzi";"AGENZIA DELLE ENTRATE  ";"15,00";"-";"0,00";"0,00";"15,00";"MODELLO F 24";"Valido";"-";"2022";"576"
"2022";"COMPETENZA";"Mandato";"13/12/2022";"579";"Pagamento fattura n.246 del 12/12/2022  - Rif. Reversale n. 844";"24 - Menutenzioni e riparazioni ordinarie: macchine, mobili e pulizie sede";"0 - Menutenzioni e riparazioni ordinarie: macchine, mobili e pulizie sede";"IDRAULICA SERGIO DI SERGIO STRANO ";"165,00";"15,00";"-";"0,00";"150,00";"BONIFICO BANCARIO";"Valido";"-";"2022";"575"
"2022";"COMPETENZA";"Mandato";"12/12/2022";"578";"RITENUTA D'ACCONTO SU FATT. 111 - CIMOLINO TIZIANA - VINCOLATO A REVERSALE 841";"46 - Ritenute erariali per lavoro autonomo";"0 - Ritenute erariali per lavoro autonomo";"AGENZIA DELLE ENTRATE  ";"40,00";"-";"0,00";"0,00";"40,00";"MODELLO F 24";"Valido";"-";"2022";"574"
"2022";"COMPETENZA";"Mandato";"12/12/2022";"577";"IVA SPLIT PAYMENT SU FATT. 2/PA - OROZEN SRL - VINCOLATO A REVERSALE 829";"53 - Ritenute per conto terzi";"0 - Ritenute per conto terzi";"AGENZIA DELLE ENTRATE  ";"1.606,46";"-";"0,00";"0,00";"1.606,46";"MODELLO F 24";"Valido";"-";"2022";"573"
"2022";"COMPETENZA";"Mandato";"12/12/2022";"576";"IVA SPLIT PAYMENT SU FATT. 000041PA - GRAMAGLIA & C. SRL - VINCOLATO A REVERSALE 828";"53 - Ritenute per conto terzi";"0 - Ritenute per conto terzi";"AGENZIA DELLE ENTRATE  ";"37,18";"-";"0,00";"0,00";"37,18";"MODELLO F 24";"Valido";"-";"2022";"572"
"2022";"COMPETENZA";"Mandato";"12/12/2022";"575";"Pagamento fattura n.111 del 12/12/2022  - Rif. Reversale n. 841";"5 - Indennit� di carica e gettoni di presenza organi istituzionali";"0 - Indennit� di carica e gettoni di presenza organi istituzionali";"CIMOLINO  TIZIANA";"244,00";"0,00";"-";"40,00";"204,00";"BONIFICO BANCARIO";"Valido";"-";"2022";"571"
"2022";"COMPETENZA";"Mandato";"12/12/2022";"574";"TREDICESIMA MENSILITA'";"6 - Trattamento economico fondamentale";"0 - Trattamento economico fondamentale";"SANTIN COSTANZA";"4.448,96";"-";"413,91";"1.154,05";"2.881,00";"BONIFICO BANCARIO";"Valido";"VALUTA FISSA 15/12/2022 SENZA SPESE A CARICO DEL BENEFICIARIO";"2022";"570"
"2022";"COMPETENZA";"Mandato";"12/12/2022";"573";"TREDICESIMA MENSILITA'";"6 - Trattamento economico fondamentale";"0 - Trattamento economico fondamentale";"OZBOLT STEFANO";"2.153,01";"-";"198,29";"463,72";"1.491,00";"BONIFICO BANCARIO";"Valido";"VALUTA FISSA 15/12/2022 SENZA SPESE A CARICO DEL BENEFICIARIO";"2022";"569"
"2022";"COMPETENZA";"Mandato";"12/12/2022";"572";"TREDICESIMA MENSILITA'";"6 - Trattamento economico fondamentale";"0 - Trattamento economico fondamentale";"DEMARCHI DENISE";"1.819,75";"-";"167,53";"388,22";"1.264,00";"BONIFICO BANCARIO";"Valido";"VALUTA FISSA 15/12/2022 SENZA SPESE A CARICO DEL BENEFICIARIO";"2022";"568"
"2022";"COMPETENZA";"Mandato";"12/12/2022";"571";"SERVIZIO ECONOMATO";"42 - Acquisto macchine, attrezzature per gli uffici e procedure informatiche";"0 - Acquisto macchine, attrezzature per gli uffici e procedure informatiche";"SERVIZIO ECONOMATO  ";"29,99";"-";"0,00";"0,00";"29,99";"REVERSALE VINCOLATA A MANDATI";"Valido";"-";"2022";"567"
"2022";"COMPETENZA";"Mandato";"12/12/2022";"570";"SERVIZIO ECONOMATO";"37 - Imposte, tasse, tributi e bolli";"0 - Imposte, tasse, tributi e bolli";"SERVIZIO ECONOMATO  ";"411,27";"-";"0,00";"0,00";"411,27";"REVERSALE VINCOLATA A MANDATI";"Valido";"-";"2022";"566"
"2022";"COMPETENZA";"Mandato";"12/12/2022";"569";"SERVIZIO ECONOMATO";"20 - Spese di rappresentanza";"0 - Spese di rappresentanza";"SERVIZIO ECONOMATO  ";"677,76";"-";"0,00";"0,00";"677,76";"REVERSALE VINCOLATA A MANDATI";"Valido";"-";"2022";"565"
"2022";"COMPETENZA";"Mandato";"12/12/2022";"568";"SERVIZIO ECONOMATO";"17 - Cancelleria, stampati e rilegatura";"0 - Cancelleria, stampati e rilegatura";"SERVIZIO ECONOMATO  ";"178,35";"-";"0,00";"0,00";"178,35";"REVERSALE VINCOLATA A MANDATI";"Valido";"-";"2022";"564"
"2022";"COMPETENZA";"Mandato";"12/12/2022";"567";"SERVIZIO ECONOMATO";"1 - Spese Assemblea Annuale";"0 - Spese Assemblea Annuale";"SERVIZIO ECONOMATO  ";"18,40";"-";"0,00";"0,00";"18,40";"REVERSALE VINCOLATA A MANDATI";"Valido";"-";"2022";"563"
"2022";"COMPETENZA";"Mandato";"12/12/2022";"566";"Pagamento fattura n.684/PA/2022 del 07/12/2022 ";"11 - Aggiornamento e formazione";"0 - Aggiornamento e formazione";"LEGISLAZIONE TECNICA S.r.l. ";"390,00";"0,00";"-";"0,00";"390,00";"BONIFICO BANCARIO";"Valido";"-";"2022";"562"
"2022";"COMPETENZA";"Mandato";"12/12/2022";"565";"Pagamento fattura n.3 del 07/12/2022 ";"15 - Spese pubblicazione e spedizione Bollettino, addetto stampa";"0 - Spese pubblicazione e spedizione Bollettino, addetto stampa";"DALL'ARMELLINA ILARIA ";"2.000,00";"0,00";"-";"0,00";"2.000,00";"BONIFICO BANCARIO";"Valido";"-";"2022";"561"
"2022";"COMPETENZA";"Mandato";"12/12/2022";"564";"Pagamento fattura n.2/PA del 09/12/2022  - Rif. Reversale n. 829";"21 - Onorificienze agli iscritti";"0 - Onorificienze agli iscritti";"OROZEN SRL ";"8.908,54";"1.606,46";"-";"0,00";"7.302,08";"BONIFICO BANCARIO";"Valido";"-";"2022";"560"
"2022";"COMPETENZA";"Mandato";"12/12/2022";"563";"Pagamento fattura n.000041PA del 09/12/2022  - Rif. Reversale n. 828";"18 - Spese gestione fotocopiatrice, fax e sistema informatico";"0 - Spese gestione fotocopiatrice, fax e sistema informatico";"GRAMAGLIA & C. SRL  ";"206,18";"37,18";"-";"0,00";"169,00";"BONIFICO BANCARIO";"Valido";"-";"2022";"559"
"2022";"COMPETENZA";"Mandato";"09/12/2022";"562";"RITENUTA D'ACCONTO SU FATT. 1_PA_2022 - HANZLICK NOEMI - VINCOLATO A REVERSALE 826";"46 - Ritenute erariali per lavoro autonomo";"0 - Ritenute erariali per lavoro autonomo";"AGENZIA DELLE ENTRATE  ";"20,00";"-";"0,00";"0,00";"20,00";"MODELLO F 24";"Valido";"-";"2022";"558"
"2022";"COMPETENZA";"Mandato";"09/12/2022";"561";"RITENUTA D'ACCONTO SU FATT. 1/22 - CASTRONOVO GAETANO - VINCOLATO A REVERSALE 823";"46 - Ritenute erariali per lavoro autonomo";"0 - Ritenute erariali per lavoro autonomo";"AGENZIA DELLE ENTRATE  ";"122,00";"-";"0,00";"0,00";"122,00";"MODELLO F 24";"Valido";"-";"2022";"557"
"2022";"COMPETENZA";"Mandato";"09/12/2022";"560";"RITENUTA D'ACCONTO SU FATT. 1/PA - PAGAN MAURIZIO - VINCOLATO A REVERSALE 819";"46 - Ritenute erariali per lavoro autonomo";"0 - Ritenute erariali per lavoro autonomo";"AGENZIA DELLE ENTRATE  ";"160,00";"-";"0,00";"0,00";"160,00";"MODELLO F 24";"Valido";"-";"2022";"556"
"2022";"COMPETENZA";"Mandato";"09/12/2022";"559";"IVA SPLIT PAYMENT SU FATT. 220201/FEV - GRUPPO ILLIRIA SPA - VINCOLATO A REVERSALE 827";"53 - Ritenute per conto terzi";"0 - Ritenute per conto terzi";"AGENZIA DELLE ENTRATE  ";"14,46";"-";"0,00";"0,00";"14,46";"MODELLO F 24";"Valido";"-";"2022";"555"
"2022";"COMPETENZA";"Mandato";"09/12/2022";"558";"IVA SPLIT PAYMENT SU FATT. 0000164F - STABILIMENTO TRIESTINO DI SORVEGLIANZA E CHIUSURA SRL - VINCOLATO A REVERSALE 825";"53 - Ritenute per conto terzi";"0 - Ritenute per conto terzi";"AGENZIA DELLE ENTRATE  ";"39,60";"-";"0,00";"0,00";"39,60";"MODELLO F 24";"Valido";"-";"2022";"554"
"2022";"COMPETENZA";"Mandato";"09/12/2022";"557";"IVA SPLIT PAYMENT SU FATT. VD70E - UNIVERSITA' DI TRIESTE - VINCOLATO A REVERSALE 824";"53 - Ritenute per conto terzi";"0 - Ritenute per conto terzi";"AGENZIA DELLE ENTRATE  ";"154,00";"-";"0,00";"0,00";"154,00";"MODELLO F 24";"Valido";"-";"2022";"553"
"2022";"COMPETENZA";"Mandato";"09/12/2022";"556";"IVA SPLIT PAYMENT SU FATT. 12030 - EUREKA SOC. COOPERATIVA - VINCOLATO A REVERSALE 820";"53 - Ritenute per conto terzi";"0 - Ritenute per conto terzi";"AGENZIA DELLE ENTRATE  ";"5,68";"-";"0,00";"0,00";"5,68";"MODELLO F 24";"Valido";"-";"2022";"552"
"2022";"COMPETENZA";"Mandato";"09/12/2022";"555";"Pagamento fattura n.220201/FEV del 30/11/2022  - Rif. Reversale n. 827";"20 - Spese di rappresentanza";"0 - Spese di rappresentanza";"GRUPPO ILLIRIA S.p.A. ";"159,01";"14,46";"-";"0,00";"144,55";"BONIFICO BANCARIO";"Valido";"-";"2022";"551"
"2022";"COMPETENZA";"Mandato";"09/12/2022";"554";"Pagamento fattura n.1-PA-2022 del 02/12/2022  - Rif. Reversale n. 826";"5 - Indennit� di carica e gettoni di presenza organi istituzionali";"0 - Indennit� di carica e gettoni di presenza organi istituzionali";"NOEMI HANZLICK ";"202,00";"0,00";"-";"20,00";"182,00";"BONIFICO BANCARIO";"Valido";"-";"2022";"550"
"2022";"COMPETENZA";"Mandato";"09/12/2022";"553";"Pagamento fattura n.0000164/F del 30/11/2022  - Rif. Reversale n. 825";"24 - Menutenzioni e riparazioni ordinarie: macchine, mobili e pulizie sede";"0 - Menutenzioni e riparazioni ordinarie: macchine, mobili e pulizie sede";"STABILIMENTO TRIESTINO DI SORVEGLIANZA E CHIUSURA SRL  ";"219,60";"39,60";"-";"0,00";"180,00";"BONIFICO BANCARIO";"Valido";"-";"2022";"549"
"2022";"COMPETENZA";"Mandato";"09/12/2022";"552";"Pagamento fattura n.FPA 10/22 del 07/12/2022 ";"5 - Indennit� di carica e gettoni di presenza organi istituzionali";"0 - Indennit� di carica e gettoni di presenza organi istituzionali";"DOZ  MURIEL";"802,00";"0,00";"-";"0,00";"802,00";"BONIFICO BANCARIO";"Valido";"-";"2022";"548"
"2022";"COMPETENZA";"Mandato";"07/12/2022";"551";"Pagamento fattura n.VD70E-33 del 06/12/2022  - Rif. Reversale n. 824";"1 - Spese Assemblea Annuale";"0 - Spese Assemblea Annuale";"Universita' degli Studi di Trieste - Dipartimento Universitario Clinico di Scien ";"854,00";"154,00";"-";"0,00";"700,00";"BONIFICO BANCARIO";"Valido";"-";"2022";"547"
"2022";"COMPETENZA";"Mandato";"07/12/2022";"550";"Pagamento fattura n.FPA 1/22 del 06/12/2022  - Rif. Reversale n. 823";"5 - Indennit� di carica e gettoni di presenza organi istituzionali";"0 - Indennit� di carica e gettoni di presenza organi istituzionali";"CASTRONOVO  GAETANO";"122,00";"0,00";"-";"20,00";"102,00";"BONIFICO BANCARIO";"Valido";"-";"2022";"546"
"2022";"COMPETENZA";"Mandato";"06/12/2022";"549";"Pagamento fattura n.12030 del 30/11/2022  - Rif. Reversale n. 820";"26 - Spese postali";"0 - Spese postali";"EUREKA SOC. COOPERATIVA  ";"38,03";"5,68";"-";"0,00";"32,35";"BONIFICO BANCARIO";"Valido";"-";"2022";"545"
"2022";"COMPETENZA";"Mandato";"06/12/2022";"548";"Pagamento fattura n.1/PA del 05/12/2022  - Rif. Reversale n. 819";"5 - Indennit� di carica e gettoni di presenza organi istituzionali";"0 - Indennit� di carica e gettoni di presenza organi istituzionali";"PAGAN  MAURIZIO";"976,00";"0,00";"-";"160,00";"816,00";"BONIFICO BANCARIO";"Valido";"-";"2022";"544"
"2022";"COMPETENZA";"Mandato";"05/12/2022";"547";"IVA SPLIT PAYMENT SU FATT 85 - ALTRATECNICA S.A.S. DI IVO MAZZARELLA & C. - VINCOLATO A REVERSALE 812";"53 - Ritenute per conto terzi";"0 - Ritenute per conto terzi";"AGENZIA DELLE ENTRATE  ";"259,60";"-";"0,00";"0,00";"259,60";"MODELLO F 24";"Valido";"-";"2022";"543"
"2022";"COMPETENZA";"Mandato";"05/12/2022";"546";"IVA SPLIT PAYMENT SU FATT. 84 - ALTRATECNICA S.A.S. DI IVO MAZZARELLA & c. - VINCOLATO A REVERSALE 811";"53 - Ritenute per conto terzi";"0 - Ritenute per conto terzi";"AGENZIA DELLE ENTRATE  ";"1.295,80";"-";"0,00";"0,00";"1.295,80";"MODELLO F 24";"Valido";"-";"2022";"542"
"2022";"COMPETENZA";"Mandato";"05/12/2022";"545";"RITENUTA D'ACCONTO SU FATT. 1 - MESSINA MARCELLO - VINCOLATO A REVERSALE 816";"46 - Ritenute erariali per lavoro autonomo";"0 - Ritenute erariali per lavoro autonomo";"AGENZIA DELLE ENTRATE  ";"40,00";"-";"0,00";"0,00";"40,00";"MODELLO F 24";"Valido";"-";"2022";"541"
"2022";"COMPETENZA";"Mandato";"05/12/2022";"544";"RITENUTA D'ACCOTO SU FATT. 1_2022FPA - VASSELLI MICHELE - VINCOLATO A REVERSALE 815";"46 - Ritenute erariali per lavoro autonomo";"0 - Ritenute erariali per lavoro autonomo";"AGENZIA DELLE ENTRATE  ";"20,00";"-";"0,00";"0,00";"20,00";"MODELLO F 24";"Valido";"-";"2022";"540"
"2022";"COMPETENZA";"Mandato";"05/12/2022";"543";"RITENUTA D'ACCONTO SU FATT. 1/PA - PICERNA MATTEO - VINCOLATO A REVERSALE 814";"46 - Ritenute erariali per lavoro autonomo";"0 - Ritenute erariali per lavoro autonomo";"AGENZIA DELLE ENTRATE  ";"300,00";"-";"0,00";"0,00";"300,00";"MODELLO F 24";"Valido";"-";"2022";"539"
"2022";"COMPETENZA";"Mandato";"05/12/2022";"542";"RITENUTA D'ACCONTO SU FATT. 491/00/2022 - DI MAURO TAMAI OPARA COMMERCIALISTI ASSOCIATI - VINCOLATO A REVERSALE 813";"46 - Ritenute erariali per lavoro autonomo";"0 - Ritenute erariali per lavoro autonomo";"AGENZIA DELLE ENTRATE  ";"112,60";"-";"0,00";"0,00";"112,60";"MODELLO F 24";"Valido";"-";"2022";"538"
"2022";"COMPETENZA";"Mandato";"05/12/2022";"541";"RITENUTA D'ACCONTO SU FATT. 278 - FURLANI RENATO - VINCOLATO A REVERSALE 810";"46 - Ritenute erariali per lavoro autonomo";"0 - Ritenute erariali per lavoro autonomo";"AGENZIA DELLE ENTRATE  ";"500,00";"-";"0,00";"0,00";"500,00";"MODELLO F 24";"Valido";"-";"2022";"537"
"2022";"COMPETENZA";"Mandato";"05/12/2022";"540";"RITENUTA D'ACCONTO SU FATT. 2/8 - SARTORE ANDREA - VINCOLATO A REVERSALE 809";"46 - Ritenute erariali per lavoro autonomo";"0 - Ritenute erariali per lavoro autonomo";"AGENZIA DELLE ENTRATE  ";"260,00";"-";"0,00";"0,00";"260,00";"MODELLO F 24";"Valido";"-";"2022";"536"
"2022";"COMPETENZA";"Mandato";"05/12/2022";"539";"RITENUTA D'ACCONTO SU FATT. 13/FE - UKOVICH LAURA - VINCOLATO A REVERSALE 808";"46 - Ritenute erariali per lavoro autonomo";"0 - Ritenute erariali per lavoro autonomo";"AGENZIA DELLE ENTRATE  ";"590,00";"-";"0,00";"0,00";"590,00";"MODELLO F 24";"Valido";"-";"2022";"535"
"2022";"COMPETENZA";"Mandato";"05/12/2022";"538";"Pagamento fattura n.1 del 01/12/2022  - Rif. Reversale n. 816";"5 - Indennit� di carica e gettoni di presenza organi istituzionali";"0 - Indennit� di carica e gettoni di presenza organi istituzionali";"MESSINA  MARCELLO";"244,00";"0,00";"-";"40,00";"204,00";"BONIFICO BANCARIO";"Valido";"-";"2022";"534"
"2022";"COMPETENZA";"Mandato";"05/12/2022";"537";"Pagamento fattura n.1_2022FPA del 30/11/2022  - Rif. Reversale n. 815";"5 - Indennit� di carica e gettoni di presenza organi istituzionali";"0 - Indennit� di carica e gettoni di presenza organi istituzionali";"VASSELLI  MICHELE";"122,00";"0,00";"-";"20,00";"102,00";"BONIFICO BANCARIO";"Valido";"-";"2022";"533"
"2022";"COMPETENZA";"Mandato";"05/12/2022";"536";"Pagamento fattura n.1/PA del 04/12/2022  - Rif. Reversale n. 814";"5 - Indennit� di carica e gettoni di presenza organi istituzionali";"0 - Indennit� di carica e gettoni di presenza organi istituzionali";"PICERNA  MATTEO";"1.830,00";"0,00";"-";"300,00";"1.530,00";"BONIFICO BANCARIO";"Valido";"-";"2022";"532"
"2022";"COMPETENZA";"Mandato";"05/12/2022";"535";"Pagamento fattura n.491/00/2022 del 01/12/2022  - Rif. Reversale n. 813";"32 - Spese legali, consulenza del lavoro, R.S.P.P.";"0 - Spese legali, consulenza del lavoro, R.S.P.P.";"DI MAURO TAMAI OPARA COMMERCIALISTI ASSOCIATI  ";"714,33";"0,00";"-";"112,60";"601,73";"BONIFICO BANCARIO";"Valido";"-";"2022";"531"
"2022";"COMPETENZA";"Mandato";"05/12/2022";"534";"Pagamento fattura n.85 del 30/11/2022  - Rif. Reversale n. 812";"42 - Acquisto macchine, attrezzature per gli uffici e procedure informatiche";"0 - Acquisto macchine, attrezzature per gli uffici e procedure informatiche";"Altratecnica s.a.s di Ivo Mazzarella & C ";"1.439,60";"259,60";"-";"0,00";"1.180,00";"BONIFICO BANCARIO";"Valido";"-";"2022";"530"
"2022";"COMPETENZA";"Mandato";"05/12/2022";"533";"Pagamento fattura n.84 del 30/11/2022  - Rif. Reversale n. 811";"42 - Acquisto macchine, attrezzature per gli uffici e procedure informatiche";"0 - Acquisto macchine, attrezzature per gli uffici e procedure informatiche";"Altratecnica s.a.s di Ivo Mazzarella & C ";"7.185,80";"1.295,80";"-";"0,00";"5.890,00";"BONIFICO BANCARIO";"Valido";"-";"2022";"529"
"2022";"COMPETENZA";"Mandato";"05/12/2022";"532";"Pagamento fattura n.278 del 02/12/2022  - Rif. Reversale n. 810";"5 - Indennit� di carica e gettoni di presenza organi istituzionali";"0 - Indennit� di carica e gettoni di presenza organi istituzionali";"FURLANI RENATO ";"3.172,00";"0,00";"-";"500,00";"2.672,00";"BONIFICO BANCARIO";"Valido";"-";"2022";"528"
"2022";"COMPETENZA";"Mandato";"02/12/2022";"531";"Pagamento fattura n.2/8 del 25/11/2022  - Rif. Reversale n. 809";"5 - Indennit� di carica e gettoni di presenza organi istituzionali";"0 - Indennit� di carica e gettoni di presenza organi istituzionali";"SARTORE  ANDREA";"1.586,00";"0,00";"-";"260,00";"1.326,00";"BONIFICO BANCARIO";"Valido";"-";"2022";"527"
"2022";"COMPETENZA";"Mandato";"02/12/2022";"530";"Pagamento fattura n.13/FE del 01/12/2022  - Rif. Reversale n. 808";"5 - Indennit� di carica e gettoni di presenza organi istituzionali";"0 - Indennit� di carica e gettoni di presenza organi istituzionali";"UKOVICH  LAURA";"3.599,00";"0,00";"-";"590,00";"3.009,00";"BONIFICO BANCARIO";"Valido";"-";"2022";"526"
"2022";"COMPETENZA";"Mandato";"01/12/2022";"529";"RITENUTA D'ACCONTO SU GETTONI DI PRESENZA SCARAMUCCI MONICA - VINCOLATO A REVERSALE 804";"46 - Ritenute erariali per lavoro autonomo";"0 - Ritenute erariali per lavoro autonomo";"AGENZIA DELLE ENTRATE  ";"260,00";"-";"0,00";"0,00";"260,00";"MODELLO F 24";"Valido";"-";"2022";"525"
"2022";"COMPETENZA";"Mandato";"01/12/2022";"528";"RITENUTA D'ACCONTO SU GETTONI DI PRESENZA MARRAS EMANUELE - VINCOLATO A REVERSALE 803";"46 - Ritenute erariali per lavoro autonomo";"0 - Ritenute erariali per lavoro autonomo";"AGENZIA DELLE ENTRATE  ";"220,00";"-";"0,00";"0,00";"220,00";"MODELLO F 24";"Valido";"-";"2022";"524"
"2022";"COMPETENZA";"Mandato";"01/12/2022";"527";"RITENUTA D'ACCONTO SU GETTONI DI PRESENZA CANDIDO RICCARDO - VINCOLATO A REVERSALE 802";"46 - Ritenute erariali per lavoro autonomo";"0 - Ritenute erariali per lavoro autonomo";"AGENZIA DELLE ENTRATE  ";"200,00";"-";"0,00";"0,00";"200,00";"MODELLO F 24";"Valido";"-";"2022";"523"
"2022";"COMPETENZA";"Mandato";"01/12/2022";"526";"RITENUTA D'ACCONTO SU GETTONI DI PRESENZA BORTUL MARINA - VINCOLATO A REVERSALE 801";"46 - Ritenute erariali per lavoro autonomo";"0 - Ritenute erariali per lavoro autonomo";"AGENZIA DELLE ENTRATE  ";"200,00";"-";"0,00";"0,00";"200,00";"MODELLO F 24";"Valido";"-";"2022";"522"
"2022";"COMPETENZA";"Mandato";"01/12/2022";"525";"RITENUTA D'ACCONTO SU FATT. 08/PA/2022 - PASCHINA DIEGO - VINCOLATO A REVERSALE 800";"46 - Ritenute erariali per lavoro autonomo";"0 - Ritenute erariali per lavoro autonomo";"AGENZIA DELLE ENTRATE  ";"600,00";"-";"0,00";"0,00";"600,00";"MODELLO F 24";"Valido";"-";"2022";"521"
"2022";"COMPETENZA";"Mandato";"01/12/2022";"524";"RITENUTA D'ACCONTO SU FATT. PA1 - BAZZOCCHI MASSIMO - VINCOLATO A REVERSALE 798";"46 - Ritenute erariali per lavoro autonomo";"0 - Ritenute erariali per lavoro autonomo";"AGENZIA DELLE ENTRATE  ";"240,00";"-";"0,00";"0,00";"240,00";"MODELLO F 24";"Valido";"-";"2022";"520"
"2022";"COMPETENZA";"Mandato";"01/12/2022";"523";"IVA SPLIT PAYMENT SU FATT. 23/PA - I.P.S.U. DI ZONTA CALLIGARIS ANNAMARIA & C. SAS - VINCOLATO A REVERSALE 797";"53 - Ritenute per conto terzi";"0 - Ritenute per conto terzi";"AGENZIA DELLE ENTRATE  ";"95,70";"-";"0,00";"0,00";"95,70";"MODELLO F 24";"Valido";"-";"2022";"519"
"2022";"COMPETENZA";"Mandato";"01/12/2022";"522";"GETTONI DI PRESENZA 2022";"5 - Indennit� di carica e gettoni di presenza organi istituzionali";"0 - Indennit� di carica e gettoni di presenza organi istituzionali";"SCARAMUCCI  MONICA";"1.300,00";"-";"0,00";"260,00";"1.040,00";"BONIFICO BANCARIO";"Valido";"-";"2022";"518"
"2022";"COMPETENZA";"Mandato";"01/12/2022";"521";"GETTONI DI PRESENZA 2022";"5 - Indennit� di carica e gettoni di presenza organi istituzionali";"0 - Indennit� di carica e gettoni di presenza organi istituzionali";"MARRAS  EMANUELE";"1.100,00";"-";"0,00";"220,00";"880,00";"BONIFICO BANCARIO";"Valido";"-";"2022";"517"
"2022";"COMPETENZA";"Mandato";"01/12/2022";"520";"GETTONI DI PRESENZA 2022";"5 - Indennit� di carica e gettoni di presenza organi istituzionali";"0 - Indennit� di carica e gettoni di presenza organi istituzionali";"CANDIDO  RICCARDO";"1.000,00";"-";"0,00";"200,00";"800,00";"BONIFICO BANCARIO";"Valido";"-";"2022";"516"
"2022";"COMPETENZA";"Mandato";"01/12/2022";"519";"GETTONI DI PRESENZA 2022";"5 - Indennit� di carica e gettoni di presenza organi istituzionali";"0 - Indennit� di carica e gettoni di presenza organi istituzionali";"BORTUL  MARINA";"1.000,00";"-";"0,00";"200,00";"800,00";"BONIFICO BANCARIO";"Valido";"-";"2022";"515"
"2022";"COMPETENZA";"Mandato";"01/12/2022";"518";"Pagamento fattura n.08/PA/2022 del 30/11/2022  - Rif. Reversale n. 800";"5 - Indennit� di carica e gettoni di presenza organi istituzionali";"0 - Indennit� di carica e gettoni di presenza organi istituzionali";"PASCHINA  DIEGO";"3.660,00";"0,00";"-";"600,00";"3.060,00";"BONIFICO BANCARIO";"Valido";"-";"2022";"514"
"2022";"COMPETENZA";"Mandato";"30/11/2022";"517";"Pagamento fattura n.PA/1 del 29/11/2022  - Rif. Reversale n. 798";"5 - Indennit� di carica e gettoni di presenza organi istituzionali";"0 - Indennit� di carica e gettoni di presenza organi istituzionali";"BAZZOCCHI  MASSIMO";"1.464,00";"0,00";"-";"240,00";"1.224,00";"BONIFICO BANCARIO";"Valido";"-";"2022";"513"
"2022";"COMPETENZA";"Mandato";"30/11/2022";"516";"Pagamento fattura n.23/PA del 30/11/2022  - Rif. Reversale n. 797";"24 - Menutenzioni e riparazioni ordinarie: macchine, mobili e pulizie sede";"0 - Menutenzioni e riparazioni ordinarie: macchine, mobili e pulizie sede";"I.P.S.U. DI ZONTA CALLIGARIS ANNAMARIA & C SAS  ";"530,70";"95,70";"-";"0,00";"435,00";"BONIFICO BANCARIO";"Valido";"-";"2022";"512"
"2022";"COMPETENZA";"Mandato";"30/11/2022";"515";"IVA SPLIT PAYMENT SU FATT. 22/PA - I.P.S.U. DI ZONTA CALLIGARIS ANNAMARIA & C. SAS - VINCOLATO A REVERSALE 796";"53 - Ritenute per conto terzi";"0 - Ritenute per conto terzi";"AGENZIA DELLE ENTRATE  ";"95,70";"-";"0,00";"0,00";"95,70";"MODELLO F 24";"Valido";"-";"2022";"511"
"2022";"COMPETENZA";"Mandato";"30/11/2022";"514";"IVA SPLIT PAYMENT SU FATT. 820/E - TELEQUATTRO SRL A SOCIO UNICO - VINCOLATO A REVERSALE 794";"53 - Ritenute per conto terzi";"0 - Ritenute per conto terzi";"AGENZIA DELLE ENTRATE  ";"366,67";"-";"0,00";"0,00";"366,67";"MODELLO F 24";"Valido";"-";"2022";"510"
"2022";"COMPETENZA";"Mandato";"30/11/2022";"513";"RITENUTA D'ACCONTO SU FATT. 22/E - CANZIO ROBERTO - VINCOLATO A REVERSALE 793";"46 - Ritenute erariali per lavoro autonomo";"0 - Ritenute erariali per lavoro autonomo";"AGENZIA DELLE ENTRATE  ";"600,00";"-";"0,00";"0,00";"600,00";"MODELLO F 24";"Valido";"-";"2022";"509"
"2022";"COMPETENZA";"Mandato";"30/11/2022";"512";"RITENUTA D'ACCONTO SU FATT. 8/PA - QUARANTA COSIMO - VINCOLATO A REVERSALE 792";"46 - Ritenute erariali per lavoro autonomo";"0 - Ritenute erariali per lavoro autonomo";"AGENZIA DELLE ENTRATE  ";"1.000,00";"-";"0,00";"0,00";"1.000,00";"MODELLO F 24";"Valido";"-";"2022";"508"
"2022";"COMPETENZA";"Mandato";"30/11/2022";"511";"Pagamento fattura n.22/PA del 30/11/2022  - Rif. Reversale n. 796";"24 - Menutenzioni e riparazioni ordinarie: macchine, mobili e pulizie sede";"0 - Menutenzioni e riparazioni ordinarie: macchine, mobili e pulizie sede";"I.P.S.U. DI ZONTA CALLIGARIS ANNAMARIA & C SAS  ";"530,70";"95,70";"-";"0,00";"435,00";"BONIFICO BANCARIO";"Valido";"-";"2022";"507"
"2022";"COMPETENZA";"Mandato";"30/11/2022";"510";"Pagamento fattura n.820/E del 29/11/2022  - Rif. Reversale n. 794";"20 - Spese di rappresentanza";"0 - Spese di rappresentanza";"TELEQUATTRO SRL A SOCIO UNICO ";"2.033,34";"366,67";"-";"0,00";"1.666,67";"BONIFICO BANCARIO";"Valido";"-";"2022";"506"
"2022";"COMPETENZA";"Mandato";"30/11/2022";"509";"Pagamento fattura n.22/E 2022 del 28/11/2022  - Rif. Reversale n. 793";"5 - Indennit� di carica e gettoni di presenza organi istituzionali";"0 - Indennit� di carica e gettoni di presenza organi istituzionali";"CANZIO  ROBERTO";"3.660,00";"0,00";"-";"600,00";"3.060,00";"BONIFICO BANCARIO";"Valido";"-";"2022";"505"
"2022";"COMPETENZA";"Mandato";"29/11/2022";"508";"Pagamento fattura n.1 del 28/11/2022";"5 - Indennit� di carica e gettoni di presenza organi istituzionali";"0 - Indennit� di carica e gettoni di presenza organi istituzionali";"BARBARA ZIANI ";"1.300,00";"0,00";"-";"0,00";"1.300,00";"BONIFICO BANCARIO";"Valido";"-";"2022";"504"
"2022";"COMPETENZA";"Mandato";"29/11/2022";"507";"Pagamento fattura n.8/PA del 28/11/2022  - Rif. Reversale n. 792";"5 - Indennit� di carica e gettoni di presenza organi istituzionali";"0 - Indennit� di carica e gettoni di presenza organi istituzionali";"QUARANTA  COSIMO";"6.100,00";"0,00";"-";"1.000,00";"5.100,00";"BONIFICO BANCARIO";"Valido";"-";"2022";"503"
"2022";"COMPETENZA";"Mandato";"28/11/2022";"506";"RITENUTA D'ACCONTO SU FATT. 16 - BRIGANTI PICCOLI FABRIZIO - VINCOLATO A REVERSALE 791";"46 - Ritenute erariali per lavoro autonomo";"0 - Ritenute erariali per lavoro autonomo";"AGENZIA DELLE ENTRATE  ";"200,00";"-";"0,00";"0,00";"200,00";"MODELLO F 24";"Valido";"-";"2022";"502"
"2022";"COMPETENZA";"Mandato";"28/11/2022";"505";"RITENUTA D'ACCONTO SU PAGAMENTO INDENNITA' DI CARICA SECONDO SEMESTRE 2022";"46 - Ritenute erariali per lavoro autonomo";"0 - Ritenute erariali per lavoro autonomo";"AGENZIA DELLE ENTRATE  ";"600,00";"-";"0,00";"0,00";"600,00";"MODELLO F 24";"Valido";"-";"2022";"501"
"2022";"COMPETENZA";"Mandato";"28/11/2022";"504";"RITENUTA D'ACCONTO SU FATT. 17 - BALESTRA MARIO - VINCOLATO A REVERSALE 788";"46 - Ritenute erariali per lavoro autonomo";"0 - Ritenute erariali per lavoro autonomo";"AGENZIA DELLE ENTRATE  ";"600,00";"-";"0,00";"0,00";"600,00";"MODELLO F 24";"Valido";"-";"2022";"500"
"2022";"COMPETENZA";"Mandato";"28/11/2022";"503";"Pagamento fattura n.16 del 25/11/2022  - Rif. Reversale n. 791";"5 - Indennit� di carica e gettoni di presenza organi istituzionali";"0 - Indennit� di carica e gettoni di presenza organi istituzionali";"BRIGANTI PICCOLI  FABRIZIO";"1.220,00";"0,00";"-";"200,00";"1.020,00";"BONIFICO BANCARIO";"Valido";"-";"2022";"499"
"2022";"COMPETENZA";"Mandato";"25/11/2022";"502";"INDENNITA' DI CARICA SECONDO SEMESTRE 2022";"5 - Indennit� di carica e gettoni di presenza organi istituzionali";"0 - Indennit� di carica e gettoni di presenza organi istituzionali";"CLARICH  GABRIELLA";"3.000,00";"-";"0,00";"600,00";"2.400,00";"BONIFICO BANCARIO";"Valido";"-";"2022";"498"
"2022";"COMPETENZA";"Mandato";"25/11/2022";"501";"Pagamento fattura n.17 del 24/11/2022  - Rif. Reversale n. 788";"5 - Indennit� di carica e gettoni di presenza organi istituzionali";"0 - Indennit� di carica e gettoni di presenza organi istituzionali";"BALESTRA  MARIO";"3.660,00";"0,00";"-";"600,00";"3.060,00";"BONIFICO BANCARIO";"Valido";"-";"2022";"497"
"2022";"COMPETENZA";"Mandato";"24/11/2022";"500";"ACQUISTO PANETTONI E PANDORI BRINDISI ASSEMBLEA ORDINE";"1 - Spese Assemblea Annuale";"0 - Spese Assemblea Annuale";"ADMO FRIULI VENEZIA GIULIA ODV ";"360,00";"-";"0,00";"0,00";"360,00";"BONIFICO BANCARIO";"Valido";"-";"2022";"496"
"2022";"COMPETENZA";"Mandato";"23/11/2022";"499";"IMPOSTA SOSTITUTIVA TFR";"43 - Accantonamento indennit� anzianit� e similari";"0 - Accantonamento indennit� anzianit� e similari";"AGENZIA DELLE ENTRATE  ";"1.108,95";"-";"0,00";"0,00";"1.108,95";"MODELLO F 24";"Valido";"-";"2022";"495"
"2022";"COMPETENZA";"Mandato";"23/11/2022";"498";"IRAP STIPENDI NOVEMBRE";"13 - Contributi previdenziali e assistenziali";"0 - Contributi previdenziali e assistenziali";"AGENZIA DELLE ENTRATE  ";"1.151,16";"-";"0,00";"0,00";"1.151,16";"MODELLO F 24";"Valido";"-";"2022";"494"
"2022";"COMPETENZA";"Mandato";"23/11/2022";"497";"INPDAP STIPENDI NOVEMBRE";"13 - Contributi previdenziali e assistenziali";"0 - Contributi previdenziali e assistenziali";"AGENZIA DELLE ENTRATE  ";"13,54";"-";"0,00";"0,00";"13,54";"MODELLO F 24";"Valido";"-";"2022";"493"
"2022";"COMPETENZA";"Mandato";"23/11/2022";"496";"INPS ENTE NOVEMBRE";"13 - Contributi previdenziali e assistenziali";"0 - Contributi previdenziali e assistenziali";"AGENZIA DELLE ENTRATE  ";"3.224,59";"-";"0,00";"0,00";"3.224,59";"MODELLO F 24";"Valido";"-";"2022";"492"
"2022";"COMPETENZA";"Mandato";"23/11/2022";"495";"INPS STIPENDI NOVEMBRE - VINCOLATO A REVERSALI 778, 780 E 782";"51 - Ritenute previdenziali e assistenziali lavoro dipendente";"0 - Ritenute previdenziali e assistenziali lavoro dipendente";"AGENZIA DELLE ENTRATE  ";"1.115,04";"-";"0,00";"0,00";"1.115,04";"MODELLO F 24";"Valido";"-";"2022";"491"
"2022";"COMPETENZA";"Mandato";"23/11/2022";"494";"IRPEF STIPENDI NOVEMBRE - VINCOLATO A REVERSALI 779, 781 E 783";"47 - Ritenute erariali per lavoro dipendente";"0 - Ritenute erariali per lavoro dipendente";"AGENZIA DELLE ENTRATE  ";"3.663,30";"-";"0,00";"0,00";"3.663,30";"MODELLO F 24";"Valido";"-";"2022";"490"
"2022";"COMPETENZA";"Mandato";"23/11/2022";"493";"IVA SPLIT PAYMENT SU FATT. 000525 - INFO.ERA SRL - VINCOLATO A REVERSALE 785";"53 - Ritenute per conto terzi";"0 - Ritenute per conto terzi";"AGENZIA DELLE ENTRATE  ";"81,40";"-";"0,00";"0,00";"81,40";"MODELLO F 24";"Valido";"-";"2022";"489"
"2022";"COMPETENZA";"Mandato";"23/11/2022";"492";"IVA SPLIT PAYMENT SU FATT. 652/PA - LEGISLAZIONE TECNICA S.R.L. - VINCOLATO A REVERSALE 784";"53 - Ritenute per conto terzi";"0 - Ritenute per conto terzi";"AGENZIA DELLE ENTRATE  ";"232,32";"-";"0,00";"0,00";"232,32";"MODELLO F 24";"Valido";"-";"2022";"488"
"2022";"COMPETENZA";"Mandato";"23/11/2022";"491";"IVA SPLIT PAYMENT SU FATT. 412212068454 - HERA COMM. SRL - VINCOLATO A REVERSALE 777";"53 - Ritenute per conto terzi";"0 - Ritenute per conto terzi";"AGENZIA DELLE ENTRATE  ";"0,55";"-";"0,00";"0,00";"0,55";"MODELLO F 24";"Valido";"-";"2022";"487"
"2022";"COMPETENZA";"Mandato";"23/11/2022";"490";"IVA SPLIT PAYMENT SU FATT. 62 - DANIEL DOMANCIC - VINCOLATO A REVERSALE 771";"53 - Ritenute per conto terzi";"0 - Ritenute per conto terzi";"AGENZIA DELLE ENTRATE  ";"41,80";"-";"0,00";"0,00";"41,80";"MODELLO F 24";"Valido";"-";"2022";"486"
"2022";"COMPETENZA";"Mandato";"23/11/2022";"489";"IVA SPLIT PAYMENT SU FATT. 8D00188360-8D00189286-8D00188556 - TELECOM ITALIA S.P.A. - VINCOLATO A REVERSALE 767";"53 - Ritenute per conto terzi";"0 - Ritenute per conto terzi";"AGENZIA DELLE ENTRATE  ";"99,57";"-";"0,00";"0,00";"99,57";"MODELLO F 24";"Valido";"-";"2022";"485"
"2022";"COMPETENZA";"Mandato";"23/11/2022";"488";"Pagamento fattura n.FT000525 del 21/11/2022  - Rif. Reversale n. 785";"18 - Spese gestione fotocopiatrice, fax e sistema informatico";"0 - Spese gestione fotocopiatrice, fax e sistema informatico";"INFO.ERA SRL  ";"451,40";"81,40";"-";"0,00";"370,00";"BONIFICO BANCARIO";"Valido";"-";"2022";"484"
"2022";"COMPETENZA";"Mandato";"23/11/2022";"487";"Pagamento fattura n.FT000506 del 18/11/2022  - Rif. Reversale n. 784";"18 - Spese gestione fotocopiatrice, fax e sistema informatico";"0 - Spese gestione fotocopiatrice, fax e sistema informatico";"INFO.ERA SRL  ";"1.288,32";"232,32";"-";"0,00";"1.056,00";"BONIFICO BANCARIO";"Valido";"-";"2022";"483"
"2022";"COMPETENZA";"Mandato";"21/11/2022";"486";"NOVEMBRE";"10 - Indennit� mensa";"0 - Indennit� mensa";"SANTIN COSTANZA";"26,45";"-";"0,00";"0,00";"26,45";"BONIFICO BANCARIO";"Valido";"VALUTA FISSA AL BENEFICIARIO 25/11/2022 SENZA SPESE";"2022";"482"
"2022";"COMPETENZA";"Mandato";"21/11/2022";"485";"NOVEMBRE";"10 - Indennit� mensa";"0 - Indennit� mensa";"OZBOLT STEFANO";"37,03";"-";"0,00";"0,00";"37,03";"BONIFICO BANCARIO";"Valido";"VALUTA FISSA AL BENEFICIARIO 25/11/2022 SENZA SPESE";"2022";"481"
"2022";"COMPETENZA";"Mandato";"21/11/2022";"484";"NOVEMBRE";"10 - Indennit� mensa";"0 - Indennit� mensa";"DEMARCHI DENISE";"42,32";"-";"0,00";"0,00";"42,32";"BONIFICO BANCARIO";"Valido";"VALUTA FISSA AL BENEFICIARIO 25/11/2022 SENZA SPESE";"2022";"480"
"2022";"COMPETENZA";"Mandato";"21/11/2022";"483";"STRAORDINARI E INDENNITA' NOVEMBRE";"9 - Indennit�, trattamento accessorio e lavoro straordinario";"0 - Indennit�, trattamento accessorio e lavoro straordinario";"OZBOLT STEFANO";"192,59";"-";"0,00";"0,00";"192,59";"BONIFICO BANCARIO";"Valido";"VALUTA FISSA AL BENEFICIARIO 25/11/2022 SENZA SPESE";"2022";"479"
"2022";"COMPETENZA";"Mandato";"21/11/2022";"482";"STRAORDINARI E INDENNITA' NOVEMBRE";"9 - Indennit�, trattamento accessorio e lavoro straordinario";"0 - Indennit�, trattamento accessorio e lavoro straordinario";"DEMARCHI DENISE";"166,82";"-";"0,00";"0,00";"166,82";"BONIFICO BANCARIO";"Valido";"VALUTA FISSA AL BENEFICIARIO 25/11/2022 SENZA SPESE";"2022";"478"
"2022";"COMPETENZA";"Mandato";"21/11/2022";"481";"STIPENDIO NOVEMBRE";"6 - Trattamento economico fondamentale";"0 - Trattamento economico fondamentale";"SANTIN COSTANZA";"6.348,46";"-";"607,90";"2.005,01";"3.735,55";"BONIFICO BANCARIO";"Valido";"VALUTA FISSA AL BENEFICIARIO 25/11/2022 SENZA SPESE";"2022";"477"
"2022";"COMPETENZA";"Mandato";"21/11/2022";"480";"STIPENDIO NOVEMBRE";"6 - Trattamento economico fondamentale";"0 - Trattamento economico fondamentale";"OZBOLT STEFANO";"3.634,70";"-";"267,99";"926,33";"2.440,38";"BONIFICO BANCARIO";"Valido";"VALUTA FISSA AL BENEFICIARIO 25/11/2022 SENZA SPESE";"2022";"476"
"2022";"COMPETENZA";"Mandato";"21/11/2022";"479";"STIPENDIO NOVEMBRE";"6 - Trattamento economico fondamentale";"0 - Trattamento economico fondamentale";"DEMARCHI DENISE";"3.200,97";"-";"239,15";"731,96";"2.229,86";"BONIFICO BANCARIO";"Valido";"VALUTA FISSA AL BENEFICIARIO 25/11/2022 SENZA SPESE";"2022";"475"
"2022";"COMPETENZA";"Mandato";"18/11/2022";"478";"Pagamento fattura n.412212068454 del 15/11/2022  - Rif. Reversale n. 777";"31 - Energia elettrica, acqua e gas";"0 - Energia elettrica, acqua e gas";"HERA COMM. SRL  ";"11,56";"0,55";"-";"0,00";"11,01";"BONIFICO BANCARIO";"Valido";"-";"2022";"474"
"2022";"COMPETENZA";"Mandato";"18/11/2022";"477";"Pagamento fattura n.652/PA/2022 del 17/11/2022 ";"11 - Aggiornamento e formazione";"0 - Aggiornamento e formazione";"LEGISLAZIONE TECNICA S.r.l. ";"600,00";"0,00";"-";"0,00";"600,00";"BONIFICO BANCARIO";"Valido";"-";"2022";"473"
"2022";"COMPETENZA";"Mandato";"14/11/2022";"476";"Pagamento fattura n.62 del 09/11/2022  - Rif. Reversale n. 771";"25 - Spese manutenzione sede";"0 - Spese manutenzione sede";"DANIEL DOMANCIC ";"231,80";"41,80";"-";"0,00";"190,00";"BONIFICO BANCARIO";"Valido";"-";"2022";"472"
"2022";"COMPETENZA";"Mandato";"11/11/2022";"475";"Pagamento fattura n.8D00188556 del 11/10/2022";"27 - Spese telefoniche, fax e collegamento Internet";"0 - Spese telefoniche, fax e collegamento Internet";"TELECOM ITALIA S.P.A.  ";"153,57";"0,00";"-";"0,00";"153,57";"COPERTURA SOSPESI";"Valido";"-";"2022";"471"
"2022";"COMPETENZA";"Mandato";"11/11/2022";"474";"Pagamento fattura n.8D00189286 del 11/10/2022";"27 - Spese telefoniche, fax e collegamento Internet";"0 - Spese telefoniche, fax e collegamento Internet";"TELECOM ITALIA S.P.A.  ";"154,00";"0,00";"-";"0,00";"154,00";"COPERTURA SOSPESI";"Valido";"-";"2022";"470"
"2022";"COMPETENZA";"Mandato";"11/11/2022";"473";"Pagamento fattura n.8D00188360 del 11/10/2022";"27 - Spese telefoniche, fax e collegamento Internet";"0 - Spese telefoniche, fax e collegamento Internet";"TELECOM ITALIA S.P.A.  ";"145,00";"0,00";"-";"0,00";"145,00";"COPERTURA SOSPESI";"Valido";"-";"2022";"469"
"2022";"COMPETENZA";"Mandato";"11/11/2022";"472";"Pagamento fatture   - Rif. Reversale n. 767";"27 - Spese telefoniche, fax e collegamento Internet";"0 - Spese telefoniche, fax e collegamento Internet";"TELECOM ITALIA S.P.A.  ";"99,57";"99,57";"-";"-";"0,00";"REVERSALE VINCOLATA A MANDATI";"Valido";"-";"2022";"468"
"2022";"COMPETENZA";"Mandato";"08/11/2022";"471";"Pagamento fattura n.10958 del 31/10/2022 ";"26 - Spese postali";"0 - Spese postali";"EUREKA SOC. COOPERATIVA  ";"8,15";"0,00";"-";"0,00";"8,15";"BONIFICO BANCARIO";"Valido";"-";"2022";"467"
"2022";"COMPETENZA";"Mandato";"07/11/2022";"470";"IVA SPLIT PAYMENT SU FATT. 832202236287 - HERA COMM. SRL - VINCOLATO A REVERSALE 753";"53 - Ritenute per conto terzi";"0 - Ritenute per conto terzi";"AGENZIA DELLE ENTRATE  ";"142,81";"-";"0,00";"0,00";"142,81";"MODELLO F 24";"Valido";"-";"2022";"466"
"2022";"COMPETENZA";"Mandato";"07/11/2022";"469";"IVA SPLIT PAYMENT SU FATT. 0000659124AMC12022 - MANZONI S.P.A. - VINCOLATO A REVERSALE 751";"53 - Ritenute per conto terzi";"0 - Ritenute per conto terzi";"AGENZIA DELLE ENTRATE  ";"101,20";"-";"0,00";"0,00";"101,20";"MODELLO F 24";"Valido";"-";"2022";"465"
"2022";"COMPETENZA";"Mandato";"07/11/2022";"468";"IVA SPLIT PAYMENT SU FATT. 2022S3002032 - PROCED S.R.L. - VINCOLATO A REVERSALE 740";"53 - Ritenute per conto terzi";"0 - Ritenute per conto terzi";"AGENZIA DELLE ENTRATE  ";"173,97";"-";"0,00";"0,00";"173,97";"MODELLO F 24";"Valido";"-";"2022";"464"
"2022";"COMPETENZA";"Mandato";"07/11/2022";"467";"Pagamento fattura n.832202236287 del 23/09/2022";"31 - Energia elettrica, acqua e gas";"0 - Energia elettrica, acqua e gas";"HERA COMM. SRL  ";"649,15";"0,00";"-";"0,00";"649,15";"COPERTURA SOSPESI";"Valido";"-";"2022";"463"
"2022";"COMPETENZA";"Mandato";"07/11/2022";"466";"Pagamento fatture   - Rif. Reversale n. 753";"31 - Energia elettrica, acqua e gas";"0 - Energia elettrica, acqua e gas";"HERA COMM. SRL  ";"142,81";"142,81";"-";"-";"0,00";"REVERSALE VINCOLATA A MANDATI";"Valido";"-";"2022";"462"
"2022";"COMPETENZA";"Mandato";"04/11/2022";"465";"Pagamento fattura n.0000659124AMC12022 del 31/10/2022  - Rif. Reversale n. 751";"20 - Spese di rappresentanza";"0 - Spese di rappresentanza";"MANZONI S.P.A.  ";"561,20";"101,20";"-";"0,00";"460,00";"BONIFICO BANCARIO";"Valido";"-";"2022";"461"
"2022";"COMPETENZA";"Mandato";"02/11/2022";"464";"IVA SPLIT PAYMENT SU FATT. 20/PA - I.P.S.U. DI ZONTA CALLIGARIS ANNAMARIA & C SAS - VINCOLATO A REVERSALE 739";"53 - Ritenute per conto terzi";"0 - Ritenute per conto terzi";"AGENZIA DELLE ENTRATE  ";"95,70";"-";"0,00";"0,00";"95,70";"MODELLO F 24";"Valido";"-";"2022";"460"
"2022";"COMPETENZA";"Mandato";"02/11/2022";"463";"IVA SPLIT PAYMENT SU FATT. AO19171836 - VODAFONE ITALIA S.P.A. - VINCOLATO A REVERSALE 738";"53 - Ritenute per conto terzi";"0 - Ritenute per conto terzi";"AGENZIA DELLE ENTRATE  ";"5,28";"-";"0,00";"0,00";"5,28";"MODELLO F 24";"Valido";"-";"2022";"459"
"2022";"COMPETENZA";"Mandato";"02/11/2022";"462";"IVA SPLIT PAYMENT SU FATT. 40_22 - GRAMMA SERVIZI E RISCOSSIONI DI DOMENICO TARATUFOLO - VINCOLATO A REVERSALE 737";"53 - Ritenute per conto terzi";"0 - Ritenute per conto terzi";"AGENZIA DELLE ENTRATE  ";"9,24";"-";"0,00";"0,00";"9,24";"MODELLO F 24";"Valido";"-";"2022";"458"
"2022";"COMPETENZA";"Mandato";"02/11/2022";"461";"IVA SPLIT PAYMENT SU FATT. 742/E - TELEQUATTRO SRL A SOCIO UNICO - VINCOLATO A REVERSALE 736";"53 - Ritenute per conto terzi";"0 - Ritenute per conto terzi";"AGENZIA DELLE ENTRATE  ";"366,67";"-";"0,00";"0,00";"366,67";"MODELLO F 24";"Valido";"-";"2022";"457"
"2022";"COMPETENZA";"Mandato";"02/11/2022";"460";"IVA SPLIT PAYMENT SU FATT. 206 - IDRAULICA SERGIO DI SERGIO STRANO - VINCOLATO A REVERSALE 735";"53 - Ritenute per conto terzi";"0 - Ritenute per conto terzi";"AGENZIA DELLE ENTRATE  ";"10,82";"-";"0,00";"0,00";"10,82";"MODELLO F 24";"Valido";"-";"2022";"456"
"2022";"COMPETENZA";"Mandato";"02/11/2022";"459";"Pagamento fattura n.2022S3002032 del 31/10/2022  - Rif. Reversale n. 740";"17 - Cancelleria, stampati e rilegatura";"0 - Cancelleria, stampati e rilegatura";"PROCED S.R.L.  ";"964,73";"173,97";"-";"0,00";"790,76";"BONIFICO BANCARIO";"Valido";"-";"2022";"455"
"2022";"COMPETENZA";"Mandato";"31/10/2022";"458";"Pagamento fattura n.20/PA del 31/10/2022  - Rif. Reversale n. 739";"24 - Menutenzioni e riparazioni ordinarie: macchine, mobili e pulizie sede";"0 - Menutenzioni e riparazioni ordinarie: macchine, mobili e pulizie sede";"I.P.S.U. DI ZONTA CALLIGARIS ANNAMARIA & C SAS  ";"530,70";"95,70";"-";"0,00";"435,00";"BONIFICO BANCARIO";"Valido";"-";"2022";"454"
"2022";"COMPETENZA";"Mandato";"31/10/2022";"457";"Pagamento fattura n.AO19171836 del 27/10/2022  - Rif. Reversale n. 738";"27 - Spese telefoniche, fax e collegamento Internet";"0 - Spese telefoniche, fax e collegamento Internet";"VODAFONE ITALIA S.p.A. ";"29,28";"5,28";"-";"0,00";"24,00";"BONIFICO BANCARIO";"Valido";"-";"2022";"453"
"2022";"COMPETENZA";"Mandato";"31/10/2022";"456";"Pagamento fattura n.FATTPA 40_22 del 28/10/2022  - Rif. Reversale n. 737";"17 - Cancelleria, stampati e rilegatura";"0 - Cancelleria, stampati e rilegatura";"GRAMMA SERVIZI E RISCOSSIOI DI DOMENICO TARATUFOLO  ";"51,24";"9,24";"-";"0,00";"42,00";"BONIFICO BANCARIO";"Valido";"-";"2022";"452"
"2022";"COMPETENZA";"Mandato";"28/10/2022";"455";"Pagamento fattura n.742/E del 28/10/2022  - Rif. Reversale n. 736";"20 - Spese di rappresentanza";"0 - Spese di rappresentanza";"TELEQUATTRO SRL A SOCIO UNICO ";"2.033,34";"366,67";"-";"0,00";"1.666,67";"BONIFICO BANCARIO";"Valido";"-";"2022";"451"
"2022";"COMPETENZA";"Mandato";"28/10/2022";"454";"Pagamento fattura n.206 del 25/10/2022  - Rif. Reversale n. 735";"25 - Spese manutenzione sede";"0 - Spese manutenzione sede";"IDRAULICA SERGIO DI SERGIO STRANO ";"119,00";"10,82";"-";"0,00";"108,18";"BONIFICO BANCARIO";"Valido";"-";"2022";"450"
"2022";"COMPETENZA";"Mandato";"26/10/2022";"453";"IMU 2022 (RATA UNICA)";"37 - Imposte, tasse, tributi e bolli";"0 - Imposte, tasse, tributi e bolli";"ESATTO SPA  ";"2.789,00";"-";"0,00";"0,00";"2.789,00";"MODELLO F 24";"Valido";"-";"2022";"449"
"2022";"COMPETENZA";"Mandato";"26/10/2022";"452";"TARI 2022 (RATA UNICA)";"37 - Imposte, tasse, tributi e bolli";"0 - Imposte, tasse, tributi e bolli";"ESATTO SPA  ";"1.722,00";"-";"0,00";"0,00";"1.722,00";"PAGOPA";"Valido";"-";"2022";"448"
"2022";"COMPETENZA";"Mandato";"24/10/2022";"451";"RITENUTA D'ACCONTO SU FATT. 12/2022 - AVV. PIERO LUGNANI - VINCOLATO A REVERSALE 734";"46 - Ritenute erariali per lavoro autonomo";"0 - Ritenute erariali per lavoro autonomo";"AGENZIA DELLE ENTRATE  ";"230,00";"-";"0,00";"0,00";"230,00";"MODELLO F 24";"Valido";"-";"2022";"447"
"2022";"COMPETENZA";"Mandato";"24/10/2022";"450";"IVA SPLIT PAYMENT SU FATT. 712200871004 E FATT. 712200871005 - HERA COMM. SRL - VINCOLATO A REVERSALE 733";"53 - Ritenute per conto terzi";"0 - Ritenute per conto terzi";"AGENZIA DELLE ENTRATE  ";"2,10";"-";"0,00";"0,00";"2,10";"MODELLO F 24";"Valido";"-";"2022";"446"
"2022";"COMPETENZA";"Mandato";"24/10/2022";"449";"IVA SPLIT PAYMENT SU FATT. 000034 - GRAMAGLIA & C. SRL - VINCOLATO A REVERSALE 713";"53 - Ritenute per conto terzi";"0 - Ritenute per conto terzi";"AGENZIA DELLE ENTRATE  ";"132,22";"-";"0,00";"0,00";"132,22";"MODELLO F 24";"Valido";"-";"2022";"445"
"2022";"COMPETENZA";"Mandato";"24/10/2022";"448";"RITENUTA D'ACCONTO SUI FATT. 351/00/2022 - DI MAURO TAMAI OPARA COMMERCIALISTI ASSOCIATI - VINCOLATO A REVERSALE 712";"46 - Ritenute erariali per lavoro autonomo";"0 - Ritenute erariali per lavoro autonomo";"AGENZIA DELLE ENTRATE  ";"115,60";"-";"0,00";"0,00";"115,60";"MODELLO F 24";"Valido";"-";"2022";"444"
"2022";"COMPETENZA";"Mandato";"24/10/2022";"447";"Pagamento fattura n.12/2022 del 24/10/2022  - Rif. Reversale n. 734";"32 - Spese legali, consulenza del lavoro, R.S.P.P.";"0 - Spese legali, consulenza del lavoro, R.S.P.P.";"AVV. PIERO LUGNANI  ";"1.459,12";"0,00";"-";"230,00";"1.229,12";"BONIFICO BANCARIO";"Valido";"-";"2022";"443"
"2022";"COMPETENZA";"Mandato";"24/10/2022";"446";"Pagamento fattura n.712200871005 del 29/09/2022";"31 - Energia elettrica, acqua e gas";"0 - Energia elettrica, acqua e gas";"HERA COMM. SRL  ";"12,00";"0,00";"-";"0,00";"12,00";"COPERTURA SOSPESI";"Valido";"-";"2022";"442"
"2022";"COMPETENZA";"Mandato";"24/10/2022";"445";"Pagamento fattura n.712200871004 del 29/09/2022";"31 - Energia elettrica, acqua e gas";"0 - Energia elettrica, acqua e gas";"HERA COMM. SRL  ";"9,02";"0,00";"-";"0,00";"9,02";"COPERTURA SOSPESI";"Valido";"-";"2022";"441"
"2022";"COMPETENZA";"Mandato";"24/10/2022";"444";"Pagamento fatture   - Rif. Reversale n. 733";"31 - Energia elettrica, acqua e gas";"0 - Energia elettrica, acqua e gas";"HERA COMM. SRL  ";"2,10";"2,10";"-";"-";"0,00";"REVERSALE VINCOLATA A MANDATI";"Valido";"-";"2022";"440"
"2022";"COMPETENZA";"Mandato";"19/10/2022";"443";"IRAP STIPENDI OTTOBRE";"13 - Contributi previdenziali e assistenziali";"0 - Contributi previdenziali e assistenziali";"AGENZIA DELLE ENTRATE  ";"745,03";"-";"0,00";"0,00";"745,03";"MODELLO F 24";"Valido";"-";"2022";"439"
"2022";"COMPETENZA";"Mandato";"19/10/2022";"442";"INDPAD DPENTENTI OTTOBRE";"13 - Contributi previdenziali e assistenziali";"0 - Contributi previdenziali e assistenziali";"AGENZIA DELLE ENTRATE  ";"8,76";"-";"0,00";"0,00";"8,76";"MODELLO F 24";"Valido";"-";"2022";"438"
"2022";"COMPETENZA";"Mandato";"19/10/2022";"441";"INPS ENTE OTTOBRE";"13 - Contributi previdenziali e assistenziali";"0 - Contributi previdenziali e assistenziali";"AGENZIA DELLE ENTRATE  ";"2.086,94";"-";"0,00";"0,00";"2.086,94";"MODELLO F 24";"Valido";"-";"2022";"437"
"2022";"COMPETENZA";"Mandato";"19/10/2022";"440";"INPS STIPENDI OTTOBRE - VINCOLATO A REVERSALI 714, 716, 718";"51 - Ritenute previdenziali e assistenziali lavoro dipendente";"0 - Ritenute previdenziali e assistenziali lavoro dipendente";"AGENZIA DELLE ENTRATE  ";"725,18";"-";"0,00";"0,00";"725,18";"MODELLO F 24";"Valido";"-";"2022";"436"
"2022";"COMPETENZA";"Mandato";"19/10/2022";"439";"IRPEF STIPENDI OTTOBRE - VINCOLATO A REVERSALI 715, 717, 719";"47 - Ritenute erariali per lavoro dipendente";"0 - Ritenute erariali per lavoro dipendente";"AGENZIA DELLE ENTRATE  ";"2.057,06";"-";"0,00";"0,00";"2.057,06";"MODELLO F 24";"Valido";"-";"2022";"435"
"2022";"COMPETENZA";"Mandato";"19/10/2022";"438";"OTTOBRE";"10 - Indennit� mensa";"0 - Indennit� mensa";"SANTIN COSTANZA";"31,74";"-";"0,00";"0,00";"31,74";"BONIFICO BANCARIO";"Valido";"VALUTA FISSA AL 27/10/2022 SENZA SPESE A CARICO DEL BENEFICIARIO";"2022";"434"
"2022";"COMPETENZA";"Mandato";"19/10/2022";"437";"OTTOBRE";"10 - Indennit� mensa";"0 - Indennit� mensa";"OZBOLT STEFANO";"21,16";"-";"0,00";"0,00";"21,16";"BONIFICO BANCARIO";"Valido";"VALUTA FISSA AL 27/10/2022 SENZA SPESE A CARICO DEL BENEFICIARIO";"2022";"433"
"2022";"COMPETENZA";"Mandato";"19/10/2022";"436";"OTTOBRE";"10 - Indennit� mensa";"0 - Indennit� mensa";"DEMARCHI DENISE";"26,45";"-";"0,00";"0,00";"26,45";"BONIFICO BANCARIO";"Valido";"VALUTA FISSA AL 27/10/2022 SENZA SPESE A CARICO DEL BENEFICIARIO";"2022";"432"
"2022";"COMPETENZA";"Mandato";"19/10/2022";"435";"INDENNITA' E STRAORDINARI OTTOBRE";"9 - Indennit�, trattamento accessorio e lavoro straordinario";"0 - Indennit�, trattamento accessorio e lavoro straordinario";"OZBOLT STEFANO";"182,58";"-";"0,00";"0,00";"182,58";"BONIFICO BANCARIO";"Valido";"VALUTA FISSA AL 27/10/2022 SENZA SPESE A CARICO DEL BENEFICIARIO";"2022";"431"
"2022";"COMPETENZA";"Mandato";"19/10/2022";"434";"INDENNITA' E STRAORDINARI OTTOBRE";"9 - Indennit�, trattamento accessorio e lavoro straordinario";"0 - Indennit�, trattamento accessorio e lavoro straordinario";"DEMARCHI DENISE";"162,60";"-";"0,00";"0,00";"162,60";"BONIFICO BANCARIO";"Valido";"VALUTA FISSA AL 27/10/2022 SENZA SPESE A CARICO DEL BENEFICIARIO";"2022";"430"
"2022";"COMPETENZA";"Mandato";"19/10/2022";"433";"STIPENDIO OTTOBRE";"6 - Trattamento economico fondamentale";"0 - Trattamento economico fondamentale";"SANTIN COSTANZA";"4.448,95";"-";"413,91";"1.281,78";"2.753,26";"BONIFICO BANCARIO";"Valido";"VALUTA FISSA AL 27/10/2022 SENZA SPESE A CARICO DEL BENEFICIARIO";"2022";"429"
"2022";"COMPETENZA";"Mandato";"19/10/2022";"432";"STIPENDIO OTTOBRE";"6 - Trattamento economico fondamentale";"0 - Trattamento economico fondamentale";"OZBOLT STEFANO";"2.153,61";"-";"168,36";"450,99";"1.534,26";"BONIFICO BANCARIO";"Valido";"VALUTA FISSA AL 27/10/2022 SENZA SPESE A CARICO DEL BENEFICIARIO";"2022";"428"
"2022";"COMPETENZA";"Mandato";"19/10/2022";"431";"STIPENDIO OTTOBRE";"6 - Trattamento economico fondamentale";"0 - Trattamento economico fondamentale";"DEMARCHI DENISE";"1.820,15";"-";"142,91";"324,29";"1.352,95";"BONIFICO BANCARIO";"Valido";"VALUTA FISSA AL 27/10/2022 SENZA SPESE A CARICO DEL BENEFICIARIO";"2022";"427"
"2022";"COMPETENZA";"Mandato";"19/10/2022";"430";"CARTA CONTABILE 46";"36 - Commissioni e spese bancarie";"0 - Commissioni e spese bancarie";"MONTE DEI PASCHI DI SIENA  ";"2,00";"-";"0,00";"0,00";"2,00";"COPERTURA SOSPESI";"Valido";"-";"2022";"426"
"2022";"COMPETENZA";"Mandato";"19/10/2022";"429";"CARTA CONTABILE 45";"36 - Commissioni e spese bancarie";"0 - Commissioni e spese bancarie";"MONTE DEI PASCHI DI SIENA  ";"500,00";"-";"0,00";"0,00";"500,00";"COPERTURA SOSPESI";"Valido";"-";"2022";"425"
"2022";"COMPETENZA";"Mandato";"17/10/2022";"428";"SPESE CONDOMINIALI 2022";"23 - Spese condominiali";"0 - Spese condominiali";"SAI AMMINISTRAZIONI IMMOBILIARI ";"1.767,20";"-";"0,00";"0,00";"1.767,20";"BONIFICO BANCARIO";"Valido";"-";"2022";"424"
"2022";"COMPETENZA";"Mandato";"17/10/2022";"427";"Pagamento fattura n.000034PA del 14/10/2022  - Rif. Reversale n. 713";"18 - Spese gestione fotocopiatrice, fax e sistema informatico";"0 - Spese gestione fotocopiatrice, fax e sistema informatico";"GRAMAGLIA & C. SRL  ";"733,22";"132,22";"-";"0,00";"601,00";"BONIFICO BANCARIO";"Valido";"-";"2022";"423"
"2022";"COMPETENZA";"Mandato";"17/10/2022";"426";"Pagamento fattura n.351/00/2022 del 10/10/2022  - Rif. Reversale n. 712";"32 - Spese legali, consulenza del lavoro, R.S.P.P.";"0 - Spese legali, consulenza del lavoro, R.S.P.P.";"DI MAURO TAMAI OPARA COMMERCIALISTI ASSOCIATI  ";"733,37";"0,00";"-";"115,60";"617,77";"BONIFICO BANCARIO";"Valido";"-";"2022";"422"
"2022";"COMPETENZA";"Mandato";"11/10/2022";"425";"RIMBORSO SPESE DOTT. QUARANTA E DOTT.SSA SANTIN  A REGGIO EMILIA IL 7 E 8 OTTOBRE 2022";"4 - Rimborso spese viaggio, soggiorno, indennit� di trasferta organi istituzionali";"0 - Rimborso spese viaggio, soggiorno, indennit� di trasferta organi istituzionali";"DEMARCHI DENISE";"304,82";"-";"0,00";"0,00";"304,82";"CONTANTI";"Valido";"-";"2022";"421"
"2022";"COMPETENZA";"Mandato";"11/10/2022";"424";"RIMBORSO SPESE TRASFERTE REGGIO EMILIA, UDINE E PORTOGRUARO";"4 - Rimborso spese viaggio, soggiorno, indennit� di trasferta organi istituzionali";"0 - Rimborso spese viaggio, soggiorno, indennit� di trasferta organi istituzionali";"QUARANTA  COSIMO";"474,16";"-";"0,00";"0,00";"474,16";"BONIFICO BANCARIO";"Valido";"-";"2022";"420"
"2022";"COMPETENZA";"Mandato";"11/10/2022";"423";"IVA SPLIT PAYMENT SU FATT. 0000129/F - STABILIMENTO TRIESTINO DI SORVEGLIANZA E CHIUSURA SRL - VINCOLATO A REVERSALE 707";"53 - Ritenute per conto terzi";"0 - Ritenute per conto terzi";"AGENZIA DELLE ENTRATE  ";"39,60";"-";"0,00";"0,00";"39,60";"MODELLO F 24";"Valido";"-";"2022";"419"
"2022";"COMPETENZA";"Mandato";"11/10/2022";"422";"IVA SPLIT PAYMENT SU FATT. FT000445 - INFO.ERA SRL - VINCOLATO A REVERSALE 706";"53 - Ritenute per conto terzi";"0 - Ritenute per conto terzi";"AGENZIA DELLE ENTRATE  ";"402,60";"-";"0,00";"0,00";"402,60";"MODELLO F 24";"Valido";"-";"2022";"418"
"2022";"COMPETENZA";"Mandato";"11/10/2022";"421";"IVA SPLIT PAYMENT SU FATT. 0000658120AMC12022 - MANZONI S.P.A. - VINCOLATO A REVERSALE 703";"53 - Ritenute per conto terzi";"0 - Ritenute per conto terzi";"AGENZIA DELLE ENTRATE  ";"35,20";"-";"0,00";"0,00";"35,20";"MODELLO F 24";"Valido";"-";"2022";"417"
"2022";"COMPETENZA";"Mandato";"11/10/2022";"420";"IVA SPLIT PAYMENT SU FATT. 9853 - EUREKA SOC. COOPERATIVA  - VINCOLATO A REVERSALE 699";"53 - Ritenute per conto terzi";"0 - Ritenute per conto terzi";"AGENZIA DELLE ENTRATE  ";"1,14";"-";"0,00";"0,00";"1,14";"MODELLO F 24";"Valido";"-";"2022";"416"
"2022";"COMPETENZA";"Mandato";"11/10/2022";"419";"IVA SPLIT PAYMENT SU FATT. 18/PA - I.P.S.U. DI ZONTA CALLIGARIS ANNAMARIA & C. SAS - VINCOLATO A REVERSALE 698";"53 - Ritenute per conto terzi";"0 - Ritenute per conto terzi";"AGENZIA DELLE ENTRATE  ";"95,70";"-";"0,00";"0,00";"95,70";"MODELLO F 24";"Valido";"-";"2022";"415"
"2022";"COMPETENZA";"Mandato";"11/10/2022";"418";"IVA SPLIT PAYMENT SU FATT. 645/e - TELEQUATTRO SRL A SOCIO UNICO - VINCOLATO A REVERSALE 697";"53 - Ritenute per conto terzi";"0 - Ritenute per conto terzi";"AGENZIA DELLE ENTRATE  ";"366,67";"-";"0,00";"0,00";"366,67";"MODELLO F 24";"Valido";"-";"2022";"414"
"2022";"COMPETENZA";"Mandato";"11/10/2022";"417";"Pagamento fattura n.0000129/F del 30/09/2022  - Rif. Reversale n. 707";"24 - Menutenzioni e riparazioni ordinarie: macchine, mobili e pulizie sede";"0 - Menutenzioni e riparazioni ordinarie: macchine, mobili e pulizie sede";"STABILIMENTO TRIESTINO DI SORVEGLIANZA E CHIUSURA SRL  ";"219,60";"39,60";"-";"0,00";"180,00";"BONIFICO BANCARIO";"Valido";"-";"2022";"413"
"2022";"COMPETENZA";"Mandato";"11/10/2022";"416";"Pagamento fattura n.FT000445 del 30/09/2022  - Rif. Reversale n. 706";"18 - Spese gestione fotocopiatrice, fax e sistema informatico";"0 - Spese gestione fotocopiatrice, fax e sistema informatico";"INFO.ERA SRL  ";"2.232,60";"402,60";"-";"0,00";"1.830,00";"BONIFICO BANCARIO";"Valido";"-";"2022";"412"
"2022";"COMPETENZA";"Mandato";"06/10/2022";"415";"RIMBORSO SPESE CORSO ENPAM";"7 - Indennit� di trasferta e rimborsi spese";"0 - Indennit� di trasferta e rimborsi spese";"SANTIN COSTANZA";"300,00";"-";"0,00";"0,00";"300,00";"BONIFICO BANCARIO";"Valido";"-";"2022";"411"
"2022";"COMPETENZA";"Mandato";"06/10/2022";"414";"RIMBORSO SPESE CORSO ENPAM";"7 - Indennit� di trasferta e rimborsi spese";"0 - Indennit� di trasferta e rimborsi spese";"OZBOLT STEFANO";"300,00";"-";"0,00";"0,00";"300,00";"BONIFICO BANCARIO";"Valido";"-";"2022";"410"
"2022";"COMPETENZA";"Mandato";"06/10/2022";"413";"Pagamento fattura n.0000658120AMC12022 del 30/09/2022  - Rif. Reversale n. 703";"20 - Spese di rappresentanza";"0 - Spese di rappresentanza";"MANZONI S.P.A.  ";"195,20";"35,20";"-";"0,00";"160,00";"BONIFICO BANCARIO";"Valido";"-";"2022";"409"
"2022";"COMPETENZA";"Mandato";"05/10/2022";"412";"Pagamento fattura n.9853 del 30/09/2022  - Rif. Reversale n. 699";"26 - Spese postali";"0 - Spese postali";"EUREKA SOC. COOPERATIVA  ";"6,30";"1,14";"-";"0,00";"5,16";"BONIFICO BANCARIO";"Valido";"-";"2022";"408"
"2022";"COMPETENZA";"Mandato";"05/10/2022";"411";"PAGAMENTO POLIZZA 122/43953891";"34 - Assicurazione sede";"0 - Assicurazione sede";"AGENZIA TAGLIAFERRO 1949 SNC  ";"1.070,40";"-";"0,00";"0,00";"1.070,40";"BONIFICO BANCARIO";"Valido";"-";"2022";"407"
"2022";"COMPETENZA";"Mandato";"04/10/2022";"410";"Pagamento fattura n.18/PA del 30/09/2022  - Rif. Reversale n. 698";"24 - Menutenzioni e riparazioni ordinarie: macchine, mobili e pulizie sede";"0 - Menutenzioni e riparazioni ordinarie: macchine, mobili e pulizie sede";"I.P.S.U. DI ZONTA CALLIGARIS ANNAMARIA & C SAS  ";"530,70";"95,70";"-";"0,00";"435,00";"BONIFICO BANCARIO";"Valido";"-";"2022";"406"
"2022";"COMPETENZA";"Mandato";"04/10/2022";"409";"Pagamento fattura n.645/E del 30/09/2022  - Rif. Reversale n. 697";"20 - Spese di rappresentanza";"0 - Spese di rappresentanza";"TELEQUATTRO SRL A SOCIO UNICO ";"2.033,34";"366,67";"-";"0,00";"1.666,67";"BONIFICO BANCARIO";"Valido";"-";"2022";"405"
